bitfinex/quotes_SOLUSD_20240906
["timestamp","ask_amount","ask_price","bid_price","bid_amount"]
[1725605223910,65.0,130.42,130.37,19.1755]
[1725605225402,65.0,130.42,130.39,7.6691]
[1725605225603,20.0,130.42,130.39,7.6691]
[1725605225825,20.0,130.43,130.39,7.6691]
[1725605230401,20.0,130.43,130.41,7.6679]
[1725605230629,21.32340096,130.45,130.41,7.6679]
[1725605230938,1.32340096,130.45,130.41,19.1697]
[1725605231106,1.32340096,130.45,130.42,1.53327055]
[1725605231509,1.32340096,130.45,130.41,19.1697]
[1725605231720,1.32340096,130.45,130.42,1.53327606]
[1725605233125,1.32340096,130.45,130.44,7.6663]
[1725605233348,1.32340096,130.45,130.44,9.19931469]
[1725605233932,7.6623,130.51,130.46,7.6649]
[1725605234116,7.6623,130.51,130.46,9.19768578]
[1725605234316,41.79092889,130.52,130.48,7.6639]
[1725605234504,33.77771768,130.52,130.48,7.6639]
[1725605235532,20.0,130.51,130.48,7.6639]
[1725605235727,20.0,130.51,130.47,26.8248]
[1725605236030,27.6622,130.51,130.47,26.8248]
[1725605236726,1.32341637,130.5,130.47,26.8248]
[1725605238939,8.98641637,130.5,130.45,7.6656]
[1725605239117,65.0,130.49,130.44,26.8313]
[1725605239433,7.6644,130.48,130.44,19.1651]
[1725605239632,20.0,130.47,130.44,19.1651]
[1725605240224,27.6646,130.47,130.43,7.6668]
[1725605243619,27.6646,130.47,130.42,7.6674]
[1725605243830,52.6653,130.46,130.42,7.6674]
[1725605244015,20.0,130.45,130.42,7.6674]
[1725605247540,20.0,130.45,130.43,7.6669]
[1725605247725,20.0,130.46,130.42,1.53319705]
[1725605247918,20.0,130.47,130.44,7.6662]
[1725605248117,20.0,130.47,130.43,26.8337]
[1725605249646,27.6646,130.47,130.43,26.8337]
[1725605257050,20.0,130.47,130.43,26.8337]
[1725605257550,20.0,130.47,130.44,7.6663]
[1725605260138,1.32374387,130.46,130.44,7.6663]
[1725605265349,1.32374387,130.46,130.45,7.6657]
[1725605267049,1.32374387,130.46,130.44,7.6662]
[1725605271845,1.32374387,130.46,130.45,7.6657]
[1725605273765,1.32374387,130.46,130.44,7.6661]
[1725605280163,21.32374387,130.46,130.44,7.6661]
[1725605288652,7.666,130.45,130.41,26.8377]
[1725605288960,20.0,130.44,130.42,7.6671]
[1725605289269,27.6653,130.46,130.42,7.6671]
[1725605292273,1.32352121,130.45,130.42,7.6671]
[1725605292478,1.32352121,130.45,130.43,1.53331037]
[1725605292659,1.32352121,130.45,130.44,7.6663]
[1725605293075,1.32352121,130.45,130.44,9.19931431]
[1725605293384,1.32352121,130.45,130.44,7.6663]
[1725605302597,1.32352121,130.45,130.44,88.36945578]
[1725605302771,7.6605,130.54,130.5,7.6625]
[1725605303065,7.6605,130.54,130.5,9.19488394]
[1725605303270,7.6605,130.54,130.5,7.6625]
[1725605303473,7.6622,130.51,130.46,57.4854]
[1725605303694,21.4906,130.55,130.46,26.8265]
[1725605303695,7.6628,130.5,130.46,26.8265]
[1725605303895,7.6628,130.5,130.47,7.6645]
[1725605304081,20.0,130.49,130.47,7.6645]
[1725605304275,20.0,130.5,130.47,7.6645]
[1725605304791,45.0,130.49,130.46,26.8262]
[1725605305777,1.32320835,130.48,130.46,26.8262]
[1725605306185,45.0,130.49,130.46,26.8262]
[1725605307972,20.0,130.5,130.47,7.6644]
[1725605309097,1.32325738,130.49,130.47,7.6644]
[1725605311580,1.32325738,130.49,130.48,7.664]
[1725605312577,1.32325738,130.49,130.47,7.6644]
[1725605312899,21.32325738,130.49,130.46,26.8265]
[1725605313507,21.32325738,130.49,130.47,7.6645]
[1725605315590,21.32325738,130.49,130.46,26.8263]
[1725605317192,21.32325738,130.49,130.47,7.6644]
[1725605321115,21.32325738,130.49,130.48,7.664]
[1725605323511,21.32325738,130.49,130.47,26.8246]
[1725605324400,1.32325738,130.49,130.48,7.664]
[1725605324715,1.32325738,130.49,130.48,9.1965807]
[1725605324884,20.0,130.52,130.48,7.664]
[1725605324885,27.6619,130.52,130.48,7.664]
[1725605326916,20.0,130.52,130.49,7.6631]
[1725605327612,1.32353152,130.51,130.49,7.6631]
[1725605329810,1.32353152,130.51,130.5,7.6628]
[1725605330511,1.32353152,130.51,130.49,7.6631]
[1725605332615,1.32353152,130.51,130.5,28.35227236]
[1725605332790,1.32353152,130.51,130.5,26.8198]
[1725605337415,20.0,130.55,130.52,7.6613]
[1725605337599,20.0,130.55,130.52,26.8152]
[1725605338730,7.659,130.57,130.52,19.1539]
[1725605338900,20.0,130.56,130.52,19.1539]
[1725605339414,20.0,130.56,130.53,19.1514]
[1725605339613,20.0,130.57,130.55,7.6599]
[1725605339814,7.6578,130.59,130.55,7.6599]
[1725605339815,7.6578,130.59,130.55,26.8096]
[1725605340217,73.06089142,130.61,130.57,7.6586]
[1725605340399,1.32306326,130.58,130.57,7.6586]
[1725605340599,73.06089142,130.61,130.57,7.6586]
[1725605341023,1.32294766,130.58,130.56,7.6591]
[1725605341199,7.6573,130.6,130.56,7.6591]
[1725605341397,1.3230315,130.58,130.56,7.6591]
[1725605341912,1.3230315,130.58,130.55,26.8091]
[1725605342121,1.3230315,130.58,130.53,38.3042]
[1725605342122,7.6587,130.57,130.53,7.6607]
[1725605343509,8.9814315,130.58,130.54,26.8111]
[1725605343705,20.0,130.57,130.54,26.8111]
[1725605344518,20.0,130.57,130.55,7.6598]
[1725605344728,20.0,130.57,130.54,26.8113]
[1725605345093,27.6587,130.57,130.54,19.1511]
[1725605345323,7.6594,130.56,130.52,7.6613]
[1725605345821,20.0,130.57,130.52,7.6613]
[1725605345822,7.6599,130.55,130.52,7.6613]
[1725605346329,7.6605,130.54,130.51,26.8164]
[1725605346622,36.2323,130.57,130.51,26.8164]
[1725605346623,7.66,130.55,130.51,26.8164]
[1725605346805,20.0,130.54,130.51,26.8164]
[1725605349526,20.0,130.54,130.52,7.6616]
[1725605350623,20.0,130.54,130.51,26.8163]
[1725605352325,20.0,130.54,130.48,15.3388]
[1725605352526,20.0,130.54,130.47,6.6659]
[1725605352527,20.0,130.56,130.47,6.6659]
[1725605352826,45.0,130.55,130.5,7.6626]
[1725605353017,7.6617,130.52,130.49,19.1583]
[1725605353209,20.0,130.51,130.48,7.6637]
[1725605358911,20.0,130.51,130.49,7.6633]
[1725605359919,7.6612,130.53,130.49,26.8205]
[1725605360122,20.0,130.52,130.49,26.8205]
[1725605363435,1.32394229,130.51,130.49,26.8205]
[1725605367436,1.32394229,130.51,130.49,19.1575]
[1725605372138,1.32394229,130.51,130.49,26.8208]
[1725605388431,1.32394229,130.51,130.45,18.21822456]
[1725605388432,8.98664229,130.51,130.47,26.8256]
[1725605388633,27.6629,130.5,130.47,19.1614]
[1725605389350,1.32414455,130.49,130.47,19.1614]
[1725605389952,1.32414455,130.49,130.45,42.6166]
[1725605390254,8.98774455,130.49,130.46,7.665]
[1725605391129,1.32414455,130.49,130.46,7.665]
[1725605391654,21.32414455,130.49,130.46,7.665]
[1725605395152,21.32414455,130.49,130.45,26.8298]
[1725605395337,1.32414455,130.49,130.45,26.8298]
[1725605396036,21.32414455,130.49,130.45,26.8298]
[1725605396235,7.664,130.48,130.45,26.8298]
[1725605396635,28.98774455,130.49,130.45,26.8298]
[1725605398750,7.6641,130.48,130.45,26.8298]
[1725605399360,28.98774455,130.49,130.45,26.8298]
[1725605400066,28.98774455,130.49,130.46,7.665]
[1725605401861,1.32414455,130.49,130.48,7.664]
[1725605402933,1.32414455,130.49,130.48,17.27183674]
[1725605403138,1.32414455,130.49,130.48,7.664]
[1725605403662,1.32414455,130.49,130.48,10.09450805]
[1725605403862,1.32414455,130.49,130.48,7.664]
[1725605404237,1.32414455,130.49,130.48,25.16704904]
[1725605404565,1.32414455,130.49,130.48,27.59721809]
[1725605405451,1.32414455,130.49,130.48,17.99013705]
[1725605406262,1.32414455,130.49,130.48,15.559968]
[1725605407567,1.32414455,130.49,130.48,27.59682317]
[1725605407749,1.32414455,130.49,130.48,72.59682317]
[1725605408153,1.32414455,130.49,130.48,76.342668]
[1725605408457,7.6585,130.58,130.54,7.6603]
[1725605409061,1.32326274,130.57,130.54,7.6603]
[1725605409442,1.32326274,130.57,130.55,7.6598]
[1725605409643,1.32326274,130.57,130.55,26.8093]
[1725605410257,14.158,130.59,130.55,26.8093]
[1725605410765,20.0,130.58,130.55,26.8093]
[1725605411265,14.158,130.59,130.55,26.8093]
[1725605412676,22.688,130.6,130.56,7.6591]
[1725605413150,1.32308612,130.59,130.56,7.6591]
[1725605414246,21.32308612,130.59,130.56,7.6591]
[1725605418275,21.32308612,130.59,130.57,20.67784847]
[1725605418469,1.32308612,130.59,130.57,19.1461]
[1725605418671,1.32308612,130.59,130.58,9.18955914]
[1725605419166,7.6547,130.64,130.6,7.6567]
[1725605419374,7.654,130.65,130.61,7.6562]
[1725605419670,23.467,130.66,130.62,7.6553]
[1725605420851,20.0,130.65,130.62,7.6553]
[1725605421952,1.32433346,130.64,130.62,7.6553]
[1725605423270,1.32433346,130.64,130.63,7.6552]
[1725605423487,1.32433346,130.64,130.63,9.18514206]
[1725605423771,7.6511,130.7,130.66,7.6531]
[1725605423953,7.6511,130.7,130.66,9.18360572]
[1725605424154,7.65,130.72,130.68,7.6522]
[1725605424355,29.9576,130.73,130.69,7.6516]
[1725605424565,23.4628,130.73,130.69,7.6516]
[1725605425170,7.6499,130.72,130.68,7.6521]
[1725605426463,1.32364747,130.7,130.67,26.7846]
[1725605426662,1.32364747,130.7,130.67,19.1318]
[1725605426978,21.32364747,130.7,130.67,19.1318]
[1725605427570,28.97474747,130.7,130.66,7.6532]
[1725605428286,21.32364747,130.7,130.66,7.6532]
[1725605430064,21.32364747,130.7,130.65,7.6538]
[1725605430365,1.32364747,130.7,130.65,7.6538]
[1725605430765,21.32364747,130.7,130.65,7.6538]
[1725605431187,7.6517,130.69,130.65,7.6538]
[1725605433490,7.6527,130.68,130.64,26.7899]
[1725605434277,7.6521,130.69,130.65,7.6539]
[1725605434483,20.0,130.68,130.65,7.6539]
[1725605434989,20.0,130.68,130.64,19.1354]
[1725605435479,20.0,130.68,130.65,7.6536]
[1725605436017,27.6523,130.68,130.64,26.7899]
[1725605436178,27.6524,130.68,130.64,26.7899]
[1725605436495,7.6528,130.67,130.64,26.7899]
[1725605436784,7.6537,130.66,130.62,7.6557]
[1725605436990,7.6531,130.67,130.63,7.6551]
[1725605442102,20.0,130.68,130.6,19.1423]
[1725605442103,20.0,130.66,130.6,19.1423]
[1725605442397,7.6541,130.65,130.62,7.6554]
[1725605442776,7.6537,130.66,130.62,7.6554]
[1725605442985,20.0,130.65,130.62,7.6554]
[1725605447079,27.654,130.65,130.61,26.7956]
[1725605448485,7.654,130.65,130.61,26.7956]
[1725605449093,7.654,130.65,130.62,7.6556]
[1725605449298,7.6534,130.66,130.61,19.1395]
[1725605449517,20.0,130.65,130.61,19.1395]
[1725605449804,21.32377412,130.65,130.61,19.1395]
[1725605450305,21.32377412,130.65,130.63,7.6551]
[1725605450494,21.32377412,130.65,130.61,19.1395]
[1725605450698,1.32377412,130.65,130.61,19.1395]
[1725605451302,1.32377412,130.65,130.61,26.7955]
[1725605451303,8.97797412,130.65,130.61,26.7955]
[1725605451491,20.0,130.64,130.61,26.7955]
[1725605451889,20.0,130.64,130.62,7.6556]
[1725605454678,20.0,130.64,130.61,26.7956]
[1725605460302,7.6561,130.62,130.58,19.1439]
[1725605460618,20.0,130.64,130.59,1.53046378]
[1725605460819,1.32377412,130.65,130.62,7.6552]
[1725605461033,21.32377412,130.65,130.62,7.6552]
[1725605464316,1.32377412,130.65,130.64,7.6546]
[1725605464820,1.32377412,130.65,130.64,26.7911]
[1725605465229,7.6517,130.69,130.65,7.6535]
[1725605466127,20.0,130.68,130.65,7.6535]
[1725605466430,20.0,130.68,130.66,7.6534]
[1725605466601,7.6512,130.7,130.66,7.6534]
[1725605466602,20.0,130.69,130.66,7.6534]
[1725605467301,0.8420138,130.71,130.66,19.1334]
[1725605467506,0.8420138,130.71,130.68,7.6522]
[1725605468004,1.32386112,130.7,130.68,7.6522]
[1725605468323,1.32386112,130.7,130.68,26.7827]
[1725605469943,1.32386112,130.7,130.67,7.6527]
[1725605470244,1.32386112,130.7,130.69,26.7808]
[1725605471746,1.32386112,130.7,130.66,19.1333]
[1725605473418,1.32386112,130.7,130.68,7.6521]
[1725605476322,1.32386112,130.7,130.69,7.6516]
[1725605476843,21.32386112,130.7,130.68,26.7821]
[1725605477237,1.32386112,130.7,130.68,26.7821]
[1725605477441,1.32386112,130.7,130.68,19.1301]
[1725605477639,21.32386112,130.7,130.68,19.1301]
[1725605478445,1.32386112,130.7,130.68,19.1301]
[1725605479050,1.32386112,130.7,130.68,26.7822]
[1725605481846,1.32386112,130.7,130.69,7.6516]
[1725605483039,1.32386112,130.7,130.69,9.18175937]
[1725605483350,1.32386112,130.7,130.69,7.6516]
[1725605489060,1.32386112,130.7,130.69,9.18169585]
[1725605490053,0.8420138,130.71,130.7,26.7788]
[1725605493855,0.8420138,130.71,130.7,19.1277]
[1725605494054,0.8420138,130.71,130.69,7.6515]
[1725605494255,0.8420138,130.71,130.7,7.6511]
[1725605494560,0.8420138,130.71,130.7,26.7788]
[1725605495257,0.8420138,130.71,130.7,71.7788]
[1725605495752,0.8420138,130.71,130.7,26.7788]
[1725605498151,0.8420138,130.71,130.7,71.7788]
[1725605498356,0.8420138,130.71,130.7,26.7788]
[1725605502457,0.8420138,130.71,130.7,71.7788]
[1725605504364,0.8420138,130.71,130.7,92.80632408]
[1725605505440,15.8583,130.81,130.72,38.2485]
[1725605505743,15.8583,130.81,130.79,7.6453]
[1725605506248,15.8583,130.81,130.78,7.6461]
[1725605506860,15.8583,130.81,130.72,38.2485]
[1725605507161,7.646,130.79,130.74,7.6483]
[1725605507337,20.0,130.78,130.73,7.6491]
[1725605507542,1.32596269,130.78,130.73,7.6491]
[1725605507742,7.6473,130.77,130.73,7.6491]
[1725605509036,8.97256269,130.78,130.74,7.6486]
[1725605509266,20.0,130.77,130.74,7.6486]
[1725605513367,27.6473,130.77,130.73,7.6491]
[1725605513751,7.6477,130.76,130.72,26.7733]
[1725605514852,7.6477,130.76,130.73,7.6493]
[1725605517079,7.6477,130.76,130.72,26.7734]
[1725605517260,27.6486,130.75,130.71,7.6501]
[1725605517457,7.6486,130.75,130.71,7.6501]
[1725605518372,7.6486,130.75,130.72,7.6497]
[1725605519165,36.3621,130.77,130.7,26.7785]
[1725605519166,7.6492,130.74,130.7,26.7785]
[1725605519474,7.6489,130.74,130.7,26.7784]
[1725605519682,7.6489,130.74,130.7,19.1276]
[1725605519884,7.6483,130.75,130.71,7.6504]
[1725605520178,20.0,130.74,130.71,7.6504]
[1725605520555,20.0,130.74,130.71,9.18035446]
[1725605520752,20.0,130.74,130.72,7.6497]
[1725605520971,20.0,130.75,130.73,7.6493]
[1725605521177,20.0,130.76,130.73,7.6493]
[1725605521375,20.0,130.76,130.73,26.7724]
[1725605521577,24.0091,130.77,130.74,7.6486]
[1725605522081,24.0091,130.77,130.73,26.7722]
[1725605522855,20.0,130.76,130.73,26.7722]
[1725605524664,7.6482,130.75,130.71,7.6503]
[1725605524868,20.0,130.74,130.71,7.6503]
[1725605525780,27.6488,130.74,130.71,7.6503]
[1725605527789,1.3266452,130.73,130.71,7.6503]
[1725605529889,1.3266452,130.73,130.7,7.651]
[1725605530059,1.3266452,130.73,130.69,19.1278]
[1725605530265,7.6503,130.72,130.69,19.1278]
[1725605531188,7.6503,130.72,130.69,26.7794]
[1725605531683,7.6508,130.71,130.66,35.36062073]
[1725605531890,7.6501,130.72,130.68,7.6519]
[1725605532389,1.3266452,130.73,130.67,26.7835]
[1725605532390,7.6505,130.71,130.67,26.7835]
[1725605532686,7.6505,130.71,130.67,19.1308]
[1725605533579,7.6501,130.72,130.68,7.6522]
[1725605536773,15.0730452,130.73,130.69,7.6514]
[1725605536977,20.0,130.72,130.69,7.6514]
[1725605537489,20.0,130.72,130.71,7.6505]
[1725605539772,20.0,130.72,130.7,7.6508]
[1725605539970,28.9759452,130.73,130.69,26.7804]
[1725605540774,28.9759452,130.73,130.66,2.42363869]
[1725605540775,7.6523,130.68,130.66,2.42363869]
[1725605541083,7.6519,130.69,130.66,2.42363869]
[1725605541266,20.0,130.68,130.66,2.42363869]
[1725605541469,27.6526,130.68,130.66,2.42363869]
[1725605542205,7.6528,130.67,130.66,2.42363869]
[1725605542365,65.0,130.67,130.6,19.1409]
[1725605542569,7.6555,130.63,130.59,7.6573]
[1725605542792,27.6558,130.62,130.57,19.1459]
[1725605542969,20.0,130.62,130.54,19.1504]
[1725605543167,20.0,130.62,130.55,7.6598]
[1725605543367,20.0,130.63,130.55,7.6598]
[1725605543592,45.0,130.62,130.55,7.6598]
[1725605543776,20.0,130.61,130.55,7.6598]
[1725605543985,7.657,130.6,130.55,7.6598]
[1725605544296,20.0,130.59,130.55,7.6598]
[1725605544701,20.0,130.59,130.53,6.006]
[1725605544910,6.097,130.64,130.53,6.006]
[1725605544911,20.0,130.61,130.56,19.1475]
[1725605545079,27.6558,130.62,130.56,19.1475]
[1725605545988,27.6558,130.62,130.57,7.6582]
[1725605547300,7.6564,130.61,130.56,26.8067]
[1725605547508,20.0,130.62,130.56,26.8067]
[1725605547509,27.6571,130.6,130.56,19.1475]
[1725605548092,8.98088758,130.59,130.54,7.6603]
[1725605548295,20.0,130.58,130.54,7.6603]
[1725605549108,27.6582,130.58,130.54,7.6603]
[1725605552683,20.0,130.58,130.54,7.6603]
[1725605554520,20.0,130.58,130.55,26.8091]
[1725605554805,21.32328758,130.59,130.55,26.8091]
[1725605556315,28.98088758,130.59,130.55,26.8091]
[1725605559291,21.32328758,130.59,130.56,7.6591]
[1725605559616,1.32328758,130.59,130.56,1.53169807]
[1725605560399,1.32328758,130.59,130.57,7.6583]
[1725605561219,1.32328758,130.59,130.57,26.805]
[1725605563821,1.32328758,130.59,130.58,7.6581]
[1725605567716,1.32328758,130.59,130.57,26.8051]
[1725605567896,1.32328758,130.59,130.55,19.1497]
[1725605568223,8.98118758,130.59,130.55,26.8095]
[1725605568522,20.0,130.58,130.55,26.8095]
[1725605569101,1.32346745,130.57,130.55,26.8095]
[1725605574522,1.32346745,130.57,130.56,7.6593]
[1725605576512,1.32346745,130.57,130.55,26.8095]
[1725605577606,1.32346745,130.57,130.54,7.6602]
[1725605577915,1.32346745,130.57,130.54,26.8113]
[1725605579525,1.32346745,130.57,130.55,7.6598]
[1725605580026,1.32346745,130.57,130.54,26.8112]
[1725605581613,27.6583,130.58,130.54,26.8112]
[1725605583833,20.0,130.58,130.56,7.6593]
[1725605584626,20.0,130.58,130.55,7.6596]
[1725605584833,27.6583,130.58,130.54,26.8112]
[1725605585139,7.6588,130.57,130.54,26.8112]
[1725605585329,20.0,130.56,130.54,26.8112]
[1725605586017,20.0,130.56,130.54,19.1511]
[1725605588831,21.33454613,130.56,130.54,19.1511]
[1725605591015,21.33454613,130.56,130.54,26.8115]
[1725605596146,21.33454613,130.56,130.55,7.6599]
[1725605598241,1.33454613,130.56,130.55,9.1917413]
[1725605598424,1.33454613,130.56,130.55,18.79375956]
[1725605600016,1.33454613,130.56,130.55,52.6599]
[1725605600238,1.33454613,130.56,130.55,62.26118765]
[1725605600537,1.33454613,130.56,130.49,10.0]
[1725605600538,7.659,130.57,130.48,53.7854]
[1725605600840,21.33439299,130.56,130.53,7.6609]
[1725605602441,21.33439299,130.56,130.54,7.6604]
[1725605602936,1.33439299,130.56,130.54,7.6604]
[1725605603342,7.6568,130.61,130.57,7.6586]
[1725605603547,20.0,130.6,130.57,7.6586]
[1725605603942,21.33411754,130.6,130.57,7.6586]
[1725605604142,21.33411754,130.6,130.57,26.8053]
[1725605604438,21.33411754,130.6,130.58,7.6581]
[1725605604647,20.0,130.59,130.58,7.6581]
[1725605605321,1.33411754,130.6,130.59,7.6575]
[1725605610127,1.33411754,130.6,130.57,26.805]
[1725605610335,21.33411754,130.6,130.57,26.805]
[1725605613747,21.33411754,130.6,130.58,7.6579]
[1725605613929,1.33411754,130.6,130.58,7.6579]
[1725605615431,1.33411754,130.6,130.59,7.6575]
[1725605616240,1.33411754,130.6,130.59,26.8013]
[1725605617647,27.6553,130.63,130.6,7.6569]
[1725605618249,7.6559,130.62,130.59,19.1438]
[1725605618442,20.0,130.61,130.59,19.1438]
[1725605618833,20.0,130.61,130.58,7.6578]
[1725605622750,27.6568,130.61,130.57,26.8049]
[1725605623331,7.6574,130.6,130.57,19.1466]
[1725605623560,20.0,130.59,130.57,19.1466]
[1725605624957,7.6588,130.57,130.53,7.6607]
[1725605625267,20.0,130.59,130.52,26.814]
[1725605625268,27.6596,130.56,130.52,26.814]
[1725605626037,1.33433136,130.55,130.52,26.814]
[1725605626751,1.33433136,130.55,130.54,7.6604]
[1725605640242,1.33433136,130.55,130.54,68.57826784]
[1725605640444,22.8977,130.62,130.58,7.6577]
[1725605640860,1.33385043,130.59,130.58,7.6577]
[1725605641160,22.8977,130.62,130.59,7.6573]
[1725605641365,16.3102,130.62,130.59,7.6573]
[1725605641574,20.0,130.61,130.59,7.6573]
[1725605641743,21.33384146,130.61,130.59,7.6573]
[1725605642267,21.33384146,130.61,130.59,26.8009]
[1725605648580,21.33384146,130.61,130.55,7.6596]
[1725605648789,21.33384146,130.61,130.54,7.6602]
[1725605648790,7.6582,130.58,130.54,7.6602]
[1725605649062,27.70904146,130.61,130.55,7.6598]
[1725605649063,20.0,130.57,130.55,7.6598]
[1725605649575,7.70904146,130.61,130.55,7.6598]
[1725605649576,7.6579,130.59,130.55,7.6598]
[1725605650176,20.0,130.58,130.55,7.6598]
[1725605650351,27.6582,130.58,130.55,7.6598]
[1725605652364,20.0,130.58,130.55,7.6598]
[1725605655475,7.657,130.6,130.56,19.148]
[1725605655659,20.0,130.59,130.56,19.148]
[1725605656250,20.0,130.59,130.57,7.6587]
[1725605657470,20.0,130.59,130.56,26.807]
[1725605659878,20.0,130.59,130.57,7.6584]
[1725605660173,20.0,130.6,130.57,7.6584]
[1725605662081,1.33402395,130.59,130.57,7.6584]
[1725605662674,1.33402395,130.59,130.58,26.8034]
[1725605673077,7.6537,130.66,130.62,7.6556]
[1725605673291,14.4829129,130.67,130.62,7.6556]
[1725605673577,1.33354382,130.65,130.62,7.6556]
[1725605674286,8.98764382,130.65,130.62,7.6556]
[1725605674578,20.0,130.64,130.61,26.7964]
[1725605677085,27.6546,130.64,130.61,19.1403]
[1725605682482,7.6555,130.63,130.59,7.6573]
[1725605682661,27.656,130.62,130.58,26.8021]
[1725605682860,27.656,130.62,130.59,7.6573]
[1725605683066,20.0,130.62,130.59,7.6573]
[1725605683785,20.0,130.62,130.61,7.6563]
[1725605685985,20.0,130.62,130.6,26.7979]
[1725605686168,20.0,130.63,130.6,26.7979]
[1725605687868,27.6552,130.63,130.6,26.7979]
[1725605688388,27.6552,130.63,130.6,19.1411]
[1725605688695,20.0,130.63,130.6,26.7979]
[1725605690188,27.6552,130.63,130.6,26.7979]
[1725605690786,20.0,130.63,130.6,26.7979]
[1725605691397,20.0,130.63,130.61,7.6563]
[1725605692574,20.0,130.64,130.61,7.6563]
[1725605693869,1.33389234,130.63,130.61,7.6563]
[1725605696703,20.0,130.64,130.61,7.6563]
[1725605697003,1.33392819,130.63,130.61,7.6563]
[1725605697807,1.33392819,130.63,130.6,26.7978]
[1725605698112,1.33392819,130.63,130.61,7.6562]
[1725605701788,1.33392819,130.63,130.58,19.145]
[1725605703508,8.98912819,130.63,130.59,7.6571]
[1725605703694,20.0,130.62,130.59,7.6571]
[1725605704599,20.0,130.62,130.58,26.8029]
[1725605705114,20.0,130.62,130.59,7.6575]
[1725605705682,21.33392819,130.63,130.59,19.1426]
[1725605705894,1.33392819,130.63,130.59,19.1426]
[1725605706089,1.33392819,130.63,130.61,7.656]
[1725605706305,1.33392819,130.63,130.62,9.1867606]
[1725605708715,1.33392819,130.63,130.62,7.6557]
[1725605722229,1.33392819,130.63,130.62,9.18674048]
[1725605722397,22.6693,130.68,130.64,7.6545]
[1725605722724,7.653,130.67,130.62,7.6554]
[1725605722895,15.0171,130.68,130.65,7.6538]
[1725605723095,15.0171,130.68,130.64,19.1357]
[1725605723316,15.0171,130.68,130.64,26.7899]
[1725605723520,20.0,130.67,130.64,26.7899]
[1725605725323,20.0,130.68,130.64,26.79]
[1725605725524,1.333443,130.66,130.64,26.79]
[1725605726403,1.333443,130.66,130.65,7.654]
[1725605727801,1.333443,130.66,130.62,2.40627697]
[1725605728016,8.987343,130.66,130.62,10.06197697]
[1725605728211,20.0,130.65,130.62,10.06197697]
[1725605728417,20.0,130.65,130.62,7.6557]
[1725605730226,1.333443,130.66,130.64,7.6541]
[1725605730410,1.333443,130.66,130.65,7.654]
[1725605732313,1.333443,130.66,130.65,26.789]
[1725605733723,1.333443,130.66,130.65,71.789]
[1725605734106,23.5267,130.71,130.66,7.6528]
[1725605734325,15.8762,130.71,130.67,7.6524]
[1725605734540,6.2162,130.74,130.68,1.53027701]
[1725605734541,22.0924,130.74,130.68,1.53027701]
[1725605734730,7.6501,130.72,130.67,26.7838]
[1725605735035,20.0,130.71,130.67,26.7838]
[1725605737123,1.33324743,130.7,130.67,26.7838]
[1725605744236,20.0,130.71,130.68,9.18244273]
[1725605744417,20.0,130.71,130.68,7.6522]
[1725605744739,20.0,130.71,130.65,70.5533]
[1725605744939,7.6513,130.7,130.65,19.135]
[1725605745146,20.0,130.69,130.65,19.135]
[1725605745330,20.0,130.69,130.66,7.6534]
[1725605752655,1.33351045,130.68,130.66,7.6534]
[1725605752853,8.98581045,130.68,130.65,19.135]
[1725605753151,7.6534,130.66,130.63,26.7929]
[1725605753859,7.6534,130.66,130.63,25.4598]
[1725605755332,7.653,130.67,130.63,25.4598]
[1725605755540,20.0,130.66,130.64,7.6545]
[1725605757357,20.0,130.66,130.63,25.4596]
[1725605761284,20.0,130.66,130.64,7.6545]
[1725605761457,20.0,130.67,130.64,7.6545]